Department Family,Entity,Date,Expense Type,Expense Area,Supplier,Transaction Number,Amount,Description,Supplier Postcode,Supplier Type,Expenditure Type
DWP,ILF,04/02/2013,Independent Assessor visits,Social Work,Independent Assessor Costs,135243,521.90,Assessment of social care needs and recommendation of ILF funding contribution,0,,Programme
DWP,ILF,01/02/2013,Website Services,Information & Governance,Node4,135178,540.00,Website services, DE24 8HZ,,Administrative
DWP,ILF,26/02/2013,Independent Assessor visits,Social Work,Independent Assessor Costs,135715,546.20,Assessment of social care needs and recommendation of ILF funding contribution,0,,Programme
DWP,ILF,11/02/2013,Independent Assessor visits,Social Work,Independent Assessor Costs,135418,551.25,Assessment of social care needs and recommendation of ILF funding contribution,0,,Programme
DWP,ILF,12/02/2013,Legal Costs,Payment Security,Harvey Ingram LLP Solicitors,135478,563.04,"Provision of Legal Service iro debt recovery, human resource, procurement or organisational litigation",LE1 6TX,,Administrative
DWP,ILF,26/02/2013,Printing Services,Facilities,Fineprint (Nottingham) Ltd,135703,570.91,Printing service, NG3 2NJ,,Administrative
DWP,ILF,27/02/2013,Other Prepayments,Central,CIPD,135778,606.00,Professional subscriptions/courses,SW19 1JQ,,Administrative
DWP,ILF,11/02/2013,Independent Assessor visits,Social Work,Independent Assessor Costs,135436,606.00,Assessment of social care needs and recommendation of ILF funding contribution,0,,Programme
DWP,ILF,11/02/2013,Printing Services,Facilities,Fineprint (Nottingham) Ltd,135443,622.80,Printing service, NG3 2NJ,,Administrative
DWP,ILF,22/02/2013,Printing Services,Facilities,Fineprint (Nottingham) Ltd,135687,622.80,Printing service, NG3 2NJ,,Administrative
DWP,ILF,26/02/2013,Printing Services,Facilities,Fineprint (Nottingham) Ltd,135701,622.80,Printing service, NG3 2NJ,,Administrative
DWP,ILF,12/02/2013,Legal Costs,Payment Security,Harvey Ingram LLP Solicitors,135481,629.28,"Provision of Legal Service iro debt recovery, human resource, procurement or organisational litigation",LE1 6TX,,Administrative
DWP,ILF,06/02/2013,Legal Costs,Payment Security,Maclay Murray & Spens Solicitors,135365,645.60,Provision of Legal Service iro debt recovery, G2 5NL,,Administrative
DWP,ILF,12/02/2013,Legal Costs,Payment Security,Harvey Ingram LLP Solicitors,135479,645.84,"Provision of Legal Service iro debt recovery, human resource, procurement or organisational litigation",LE1 6TX,,Administrative
DWP,ILF,15/02/2013,Phone Charges,Facilities,Orange Payment Processing,135566,696.00,Telephone service,SS99 6LU,,Administrative
DWP,ILF,04/02/2013,Independent Assessor visits,Social Work,Independent Assessor Costs,135238,732.10,Assessment of social care needs and recommendation of ILF funding contribution,0,,Programme
DWP,ILF,26/02/2013,Independent Assessor visits,Social Work,Independent Assessor Costs,135709,740.65,Assessment of social care needs and recommendation of ILF funding contribution,0,,Programme
DWP,ILF,11/02/2013,Independent Assessor visits,Social Work,Independent Assessor Costs,135419,750.30,Assessment of social care needs and recommendation of ILF funding contribution,0,,Programme
DWP,ILF,05/02/2013,Other Independent Assessor Claims,Social Work,Reed Business Info Ltd,135288,780.00,advertisement fees, RH16 3DH,,Administrative
DWP,ILF,06/02/2013,Stakeholder Engagement,Corporate Affairs,User Expenses,135347,800.00,"Travel, Subsitence or general expenses incurred by users in attending ILF business",0,,Administrative
DWP,ILF,11/02/2013,Phone Charges,Facilities,Orange Payment Processing,135440,830.22,Telephone service,SS99 6LU,,Administrative
DWP,ILF,04/02/2013,Independent Assessor visits,Social Work,Independent Assessor Costs,135246,866.00,Assessment of social care needs and recommendation of ILF funding contribution,0,,Programme
DWP,ILF,04/02/2013,Independent Assessor visits,Social Work,Independent Assessor Costs,135249,866.60,Assessment of social care needs and recommendation of ILF funding contribution,0,,Programme
DWP,ILF,18/02/2013,Independent Assessor visits,Social Work,Independent Assessor Costs,135588,893.90,Assessment of social care needs and recommendation of ILF funding contribution,0,,Programme
DWP,ILF,05/02/2013,Technical IT Support,Information & Governance,Desk Top Publishing Group,135323,900.00,Proactive Support Service, LS10 1RJ,,Administrative
DWP,ILF,04/02/2013,Independent Assessor visits,Social Work,Independent Assessor Costs,135239,927.20,Assessment of social care needs and recommendation of ILF funding contribution,0,,Administrative
DWP,ILF,04/02/2013,Independent Assessor visits,Social Work,Independent Assessor Costs,135262,935.30,Assessment of social care needs and recommendation of ILF funding contribution,0,,Programme
DWP,ILF,04/02/2013,Independent Assessor visits,Social Work,Independent Assessor Costs,135237,954.90,Assessment of social care needs and recommendation of ILF funding contribution,0,,Programme
DWP,ILF,26/02/2013,Independent Assessor visits,Social Work,Independent Assessor Costs,135713,973.55,Assessment of social care needs and recommendation of ILF funding contribution,0,,Administrative
DWP,ILF,20/02/2013,Staff Wellbeing,Human Resources,Cope Occupational Health,135651,982.79,Occupational Health Service,NG9 2ND,,Administrative
DWP,ILF,12/02/2013,Legal Costs,Payment Security,Harvey Ingram LLP Solicitors,135484,990.20,"Provision of Legal Service iro debt recovery, human resource, procurement or organisational litigation",LE1 6TX,,Administrative
DWP,ILF,04/02/2013,Independent Assessor visits,Social Work,Independent Assessor Costs,135254,991.30,Assessment of social care needs and recommendation of ILF funding contribution,0,,Programme
DWP,ILF,18/02/2013,Independent Assessor visits,Social Work,Independent Assessor Costs,135581,994.95,Assessment of social care needs and recommendation of ILF funding contribution,0,,Programme
DWP,ILF,04/02/2013,Independent Assessor visits,Social Work,Rachel Orriss,135257,"1,021.70",Assessment of social care needs and recommendation of ILF funding contribution,IP22 2QZ,,Programme
DWP,ILF,18/02/2013,Independent Assessor visits,Social Work,Independent Assessor Costs,135582,"1,027.80",Assessment of social care needs and recommendation of ILF funding contribution,0,,Programme
DWP,ILF,04/02/2013,Independent Assessor visits,Social Work,Independent Assessor Costs,135244,"1,042.65",Assessment of social care needs and recommendation of ILF funding contribution,0,,Programme
DWP,ILF,26/02/2013,Independent Assessor visits,Social Work,Independent Assessor Costs,135705,"1,043.90",Assessment of social care needs and recommendation of ILF funding contribution,0,,Programme
DWP,ILF,04/02/2013,Independent Assessor visits,Social Work,Independent Assessor Costs,135248,"1,104.65",Assessment of social care needs and recommendation of ILF funding contribution,0,,Administrative
DWP,ILF,04/02/2013,Independent Assessor visits,Social Work,Independent Assessor Costs,135260,"1,132.15",Assessment of social care needs and recommendation of ILF funding contribution,0,,Programme
DWP,ILF,18/02/2013,Independent Assessor visits,Social Work,Independent Assessor Costs,135587,"1,186.40",Assessment of social care needs and recommendation of ILF funding contribution,0,,Programme
DWP,ILF,26/02/2013,Independent Assessor visits,Social Work,Independent Assessor Costs,135718,"1,192.85",Assessment of social care needs and recommendation of ILF funding contribution,0,,Programme
DWP,ILF,18/02/2013,Independent Assessor visits,Social Work,Independent Assessor Costs,135584,"1,199.30",Assessment of social care needs and recommendation of ILF funding contribution,0,,Programme
DWP,ILF,07/02/2013,General T&S ,Corporate Affairs,Redfern Travel Ltd,135382,"1,208.71",Travel and Accomodation bookings,BD1 3AZ,,Administrative
DWP,ILF,11/02/2013,Independent Assessor visits,Social Work,Independent Assessor Costs,135430,"1,243.27",Assessment of social care needs and recommendation of ILF funding contribution,0,,Programme
DWP,ILF,04/02/2013,Independent Assessor visits,Social Work,Independent Assessor Costs,135261,"1,270.20",Assessment of social care needs and recommendation of ILF funding contribution,0,,Programme
DWP,ILF,05/02/2013,Independent Assessor visits,Social Work,Independent Assessor Costs,135292,"1,287.30",Assessment of social care needs and recommendation of ILF funding contribution,0,,Programme
DWP,ILF,04/02/2013,Independent Assessor visits,Social Work,Independent Assessor Costs,135256,"1,301.70",Assessment of social care needs and recommendation of ILF funding contribution,0,,Programme
DWP,ILF,26/02/2013,Printing Services,Facilities,Fineprint (Nottingham) Ltd,135700,"1,318.75",Printing service, NG3 2NJ,,Administrative
DWP,ILF,04/02/2013,Independent Assessor visits,Social Work,Independent Assessor Costs,135245,"1,331.15",Assessment of social care needs and recommendation of ILF funding contribution,0,,Programme
DWP,ILF,04/02/2013,Independent Assessor visits,Social Work,Independent Assessor Costs,135236,"1,361.55",Assessment of social care needs and recommendation of ILF funding contribution,0,,Programme
DWP,ILF,05/02/2013,Rent & Facilities Lease,Facilities,Land Securities Trillium,135327,"1,394.80","Building lease,maintenance and utilities", LS11 9DX,,Administrative
DWP,ILF,04/02/2013,Independent Assessor visits,Social Work,Independent Assessor Costs,135250,"1,396.95",Assessment of social care needs and recommendation of ILF funding contribution,0,,Programme
DWP,ILF,01/02/2013,Business Continuity,Information & Governance,Node4,135178,"1,410.00",Website services, DE24 8HZ,,Administrative
DWP,ILF,18/02/2013,Independent Assessor visits,Social Work,Independent Assessor Costs,135586,"1,428.70",Assessment of social care needs and recommendation of ILF funding contribution,0,,Programme
DWP,ILF,11/02/2013,Independent Assessor visits,Social Work,Independent Assessor Costs,135431,"1,452.85",Assessment of social care needs and recommendation of ILF funding contribution,0,,Programme
DWP,ILF,11/02/2013,Independent Assessor visits,Social Work,Independent Assessor Costs,135432,"1,496.80",Assessment of social care needs and recommendation of ILF funding contribution,0,,Programme
DWP,ILF,04/02/2013,Independent Assessor visits,Social Work,Independent Assessor Costs,135241,"1,583.90",Assessment of social care needs and recommendation of ILF funding contribution,0,,Programme
DWP,ILF,27/02/2013,Legal Costs,Payment Security,Maclay Murray & Spens Solicitors,135777,"1,590.00",Provision of Legal Service iro debt recovery, G2 5NL,,Administrative
DWP,ILF,07/02/2013,Other Prepayments,Central,Redfern Travel Ltd,135382,"1,612.75",Travel and Accomodation bookings,BD1 3AZ,,Administrative
DWP,ILF,26/02/2013,Independent Assessor visits,Social Work,Independent Assessor Costs,135717,"1,613.30",Assessment of social care needs and recommendation of ILF funding contribution,0,,Programme
DWP,ILF,26/02/2013,Independent Assessor visits,Social Work,Independent Assessor Costs,135716,"1,613.40",Assessment of social care needs and recommendation of ILF funding contribution,0,,Programme
DWP,ILF,12/02/2013,Legal Costs,Payment Security,Harvey Ingram LLP Solicitors,135475,"1,617.60","Provision of Legal Service iro debt recovery, human resource, procurement or organisational litigation",LE1 6TX,,Administrative
DWP,ILF,11/02/2013,Independent Assessor visits,Social Work,Independent Assessor Costs,135423,"1,656.35",Assessment of social care needs and recommendation of ILF funding contribution,0,,Administrative
DWP,ILF,26/02/2013,Independent Assessor visits,Social Work,Independent Assessor Costs,135710,"1,688.50",Assessment of social care needs and recommendation of ILF funding contribution,0,,Programme
DWP,ILF,11/02/2013,Independent Assessor visits,Social Work,Independent Assessor Costs,135435,"1,696.85",Assessment of social care needs and recommendation of ILF funding contribution,0,,Programme
DWP,ILF,11/02/2013,Independent Assessor visits,Social Work,Independent Assessor Costs,135425,"1,727.05",Assessment of social care needs and recommendation of ILF funding contribution,0,,Programme
DWP,ILF,08/02/2013,FE Assistance,Human Resources,University of Derby,135405,"1,780.00",Further Education,0,,Administrative
DWP,ILF,11/02/2013,Independent Assessor visits,Social Work,Independent Assessor Costs,135422,"1,823.15",Assessment of social care needs and recommendation of ILF funding contribution,0,,Programme
DWP,ILF,04/02/2013,Independent Assessor visits,Social Work,Independent Assessor Costs,135247,"1,839.05",Assessment of social care needs and recommendation of ILF funding contribution,0,,Programme
DWP,ILF,11/02/2013,Independent Assessor visits,Social Work,Independent Assessor Costs,135429,"1,843.25",Assessment of social care needs and recommendation of ILF funding contribution,0,,Programme
DWP,ILF,04/02/2013,Independent Assessor visits,Social Work,Independent Assessor Costs,135258,"1,866.30",Assessment of social care needs and recommendation of ILF funding contribution,0,,Programme
DWP,ILF,11/02/2013,Independent Assessor visits,Social Work,Independent Assessor Costs,135438,"1,974.30",Assessment of social care needs and recommendation of ILF funding contribution,0,,Programme
DWP,ILF,04/02/2013,Independent Assessor visits,Social Work,Independent Assessor Costs,135234,"2,158.40",Assessment of social care needs and recommendation of ILF funding contribution,0,,Programme
DWP,ILF,11/02/2013,Independent Assessor visits,Social Work,Independent Assessor Costs,135427,"2,200.55",Assessment of social care needs and recommendation of ILF funding contribution,0,,Programme
DWP,ILF,11/02/2013,Independent Assessor visits,Social Work,Independent Assessor Costs,135420,"2,245.39",Assessment of social care needs and recommendation of ILF funding contribution,0,,Programme
DWP,ILF,11/02/2013,Independent Assessor visits,Social Work,Independent Assessor Costs,135421,"2,260.62",Assessment of social care needs and recommendation of ILF funding contribution,0,,Programme
DWP,ILF,22/02/2013,Independent Assessor visits,Social Work,Independent Assessor Costs,135680,"2,316.95",Assessment of social care needs and recommendation of ILF funding contribution,0,,Programme
DWP,ILF,22/02/2013,Postage,Facilities,Royal Mail,135688,"2,397.52",Postal services, PE4 5PG,,Administrative
DWP,ILF,11/02/2013,Independent Assessor visits,Social Work,Independent Assessor Costs,135433,"2,535.61",Assessment of social care needs and recommendation of ILF funding contribution,0,,Programme
DWP,ILF,04/02/2013,Independent Assessor visits,Social Work,Independent Assessor Costs,135253,"2,608.85",Assessment of social care needs and recommendation of ILF funding contribution,0,,Programme
DWP,ILF,06/02/2013,Other Prepayments,Central,Asperity employment Benefits Ltd,135344,"2,689.78",Annual Employee Benefits Discount Scheme fee,W2 5RT,,Administrative
DWP,ILF,18/02/2013,Independent Assessor visits,Social Work,Independent Assessor Costs,135583,"2,698.15",Assessment of social care needs and recommendation of ILF funding contribution,0,,Programme
DWP,ILF,12/02/2013,Other Prepayments,Central,Independent Assessor Costs,135444,"2,910.00",Assessment of social care needs and recommendation of ILF funding contribution,0,,Programme
DWP,ILF,26/02/2013,Independent Assessor visits,Social Work,Independent Assessor Costs,135711,"2,918.12",Assessment of social care needs and recommendation of ILF funding contribution,0,,Programme
DWP,ILF,27/02/2013,Additional Facilities,Facilities,TNT UK Ltd,135799,"2,928.92",Courier service, BL4 9AR,,Administrative
DWP,ILF,26/02/2013,Independent Assessor visits,Social Work,Independent Assessor Costs,135712,"3,021.45",Assessment of social care needs and recommendation of ILF funding contribution,0,,Programme
DWP,ILF,11/02/2013,Independent Assessor visits,Social Work,Independent Assessor Costs,135437,"3,042.25",Assessment of social care needs and recommendation of ILF funding contribution,0,,Programme
DWP,ILF,04/02/2013,Independent Assessor visits,Social Work,Independent Assessor Costs,135235,"3,047.74",Assessment of social care needs and recommendation of ILF funding contribution,0,,Programme
DWP,ILF,26/02/2013,Equipment Servicing,Information & Governance,Switchshop,135706,"3,183.60",Annual HP contract renewal for telecommunication systems, SG4 8HP,,Administrative
DWP,ILF,11/02/2013,Independent Assessor visits,Social Work,Independent Assessor Costs,135426,"3,363.25",Assessment of social care needs and recommendation of ILF funding contribution,0,,Programme
DWP,ILF,04/02/2013,Independent Assessor visits,Social Work,Independent Assessor Costs,135251,"3,423.60",Assessment of social care needs and recommendation of ILF funding contribution,0,,Programme
DWP,ILF,13/02/2013,Other Prepayments,Central,Data Voice & Video Sol,135534,"7,993.37",Engineer work for Government Secure Internet, SK1 3TZ,,Administrative
DWP,ILF,22/02/2013,Postage,Facilities,Royal Mail,135683,"8,000.00",Postal services, PE4 5PG,,Administrative
DWP,ILF,26/02/2013,Printing Services,Facilities,Fineprint (Nottingham) Ltd,135702,"10,639.39",Printing service, NG3 2NJ,,Administrative
DWP,ILF,28/02/2013,Other Prepayments,Central,Phoneix,135820,"13,315.20",IT Technical Support Service,WF17 9LU,,Administrative
DWP,ILF,18/02/2013,Internal Audit Services,Information & Governance,Pricewaterhouse Coopers LLP,135589,"17,083.20",Internal Audit Provision,E14 9SQ,,Administrative
DWP,ILF,05/02/2013,Rent & Facilities Lease,Facilities,Land Securities Trillium,135326,"67,720.36","Building lease,maintenance and utilities", LS11 9DX,,Administrative
